[Event "*** Titled Tuesday Blitz"]
[Site "Chess.com"]
[Date "2019.03.05"]
[Round "3"]
[White "gmjoey1"]
[Black "sergoy"]
[Result "1-0"]
[WhiteElo "2724"]
[BlackElo "2828"]
[TimeControl "180+2"]
[EndTime "13:40:45 PST"]
[Termination "gmjoey1 won by resignation"]

1. e4 {[%clk 0:03:01.9]} 1... c5 {[%clk 0:03:00.5]} 2. Nf3 {[%clk 0:03:02]} 2...
d6 {[%clk 0:03:02]} 3. c3 {[%clk 0:03:02.1]} 3... Nf6 {[%clk 0:03:02.2]} 4. Be2
{[%clk 0:03:02.9]} 4... Nc6 {[%clk 0:02:56.6]} 5. d4 {[%clk 0:03:03.2]} 5... e6
{[%clk 0:02:52]} 6. d5 {[%clk 0:03:00.7]} 6... Ne5 {[%clk 0:02:35.9]} 7. dxe6
{[%clk 0:02:46.4]} 7... Bxe6 {[%clk 0:02:34.7]} 8. Bg5 {[%clk 0:02:40.9]} 8...
Be7 {[%clk 0:02:35]} 9. Nxe5 {[%clk 0:02:31.8]} 9... dxe5 {[%clk 0:02:35.5]} 10.
Bxf6 {[%clk 0:02:29.8]} 10... Qxd1+ {[%clk 0:02:31.2]} 11. Bxd1 {[%clk
0:02:30.5]} 11... Bxf6 {[%clk 0:02:32.5]} 12. Ba4+ {[%clk 0:02:31.2]} 12... Ke7
{[%clk 0:02:32.5]} 13. Nd2 {[%clk 0:02:26.8]} 13... Rhd8 {[%clk 0:02:23.2]} 14.
Bb3 {[%clk 0:02:26.7]} 14... Bg5 {[%clk 0:02:19.4]} 15. Nf3 {[%clk 0:02:25.7]}
15... Bf6 {[%clk 0:02:02.3]} 16. Bxe6 {[%clk 0:02:21.4]} 16... Kxe6 {[%clk
0:02:02.3]} 17. Ke2 {[%clk 0:02:22.8]} 17... Be7 {[%clk 0:02:03.6]} 18. Rhd1
{[%clk 0:02:20.8]} 18... g6 {[%clk 0:02:04.7]} 19. a4 {[%clk 0:02:14.1]} 19...
c4 {[%clk 0:02:04.9]} 20. Rxd8 {[%clk 0:02:06.5]} 20... Rxd8 {[%clk 0:02:05.6]}
21. a5 {[%clk 0:02:00.5]} 21... b6 {[%clk 0:01:57.8]} 22. axb6 {[%clk
0:02:00.5]} 22... axb6 {[%clk 0:01:59]} 23. Ra6 {[%clk 0:02:01]} 23... Rd6
{[%clk 0:01:58.5]} 24. Ra7 {[%clk 0:02:00.8]} 24... f6 {[%clk 0:01:48.5]} 25.
Rc7 {[%clk 0:01:58.6]} 25... f5 {[%clk 0:01:13.3]} 26. Rxc4 {[%clk 0:01:50.7]}
26... b5 {[%clk 0:01:10.9]} 27. Rc7 {[%clk 0:01:50.4]} 27... fxe4 {[%clk
0:01:07.7]} 28. Nd2 {[%clk 0:01:50.5]} 28... e3 {[%clk 0:01:04.8]} 29. fxe3
{[%clk 0:01:50.1]} 29... Ra6 {[%clk 0:01:04.1]} 30. Rb7 {[%clk 0:01:50.3]} 30...
Ra5 {[%clk 0:01:03]} 31. Kd3 {[%clk 0:01:48.4]} 31... h5 {[%clk 0:00:22.7]} 32.
b4 {[%clk 0:01:44.2]} 32... Ra1 {[%clk 0:00:22.3]} 33. Rxb5 {[%clk 0:01:41.5]}
33... Rg1 {[%clk 0:00:23.4]} 34. Rxe5+ {[%clk 0:01:36.3]} 34... Kf6 {[%clk
0:00:22.5]} 35. g3 {[%clk 0:01:24.3]} 35... Rg2 {[%clk 0:00:23.2]} 36. Ra5
{[%clk 0:01:24.2]} 36... Rxh2 {[%clk 0:00:24.4]} 37. Ra6+ {[%clk 0:01:25.1]}
37... Kf7 {[%clk 0:00:25]} 38. b5 {[%clk 0:01:26]} 38... Rh1 {[%clk 0:00:25.3]}
39. b6 {[%clk 0:01:25.9]} 39... h4 {[%clk 0:00:16.7]} 40. b7 {[%clk 0:01:25.5]}
1-0

[Event "*** Titled Tuesday Blitz"]
[Site "Chess.com"]
[Date "2019.03.05"]
[Round "3"]
[White "therealtrader"]
[Black "GM_dmitrij"]
[Result "1-0"]
[WhiteElo "2668"]
[BlackElo "2859"]
[TimeControl "180+2"]
[EndTime "13:40:46 PST"]
[Termination "therealtrader won by resignation"]

1. d4 {[%clk 0:03:01.8]} 1... d5 {[%clk 0:02:58.5]} 2. c4 {[%clk 0:03:03]} 2...
c6 {[%clk 0:02:59.7]} 3. Nf3 {[%clk 0:03:04.2]} 3... Nf6 {[%clk 0:02:59.8]} 4.
Nc3 {[%clk 0:03:05.5]} 4... e6 {[%clk 0:03:00.9]} 5. e3 {[%clk 0:03:06.5]} 5...
Nbd7 {[%clk 0:03:00.2]} 6. Qc2 {[%clk 0:03:07.7]} 6... Bd6 {[%clk 0:03:00.5]} 7.
Bd3 {[%clk 0:03:08.9]} 7... O-O {[%clk 0:03:00.3]} 8. O-O {[%clk 0:03:09.9]}
8... dxc4 {[%clk 0:03:01]} 9. Bxc4 {[%clk 0:03:11.1]} 9... b5 {[%clk 0:03:02.9]}
10. Be2 {[%clk 0:03:12.1]} 10... Bb7 {[%clk 0:03:01.1]} 11. e4 {[%clk
0:03:13.2]} 11... e5 {[%clk 0:03:01.9]} 12. dxe5 {[%clk 0:03:14.1]} 12... Nxe5
{[%clk 0:03:03.8]} 13. Nd4 {[%clk 0:03:15.4]} 13... b4 {[%clk 0:03:00.4]} 14.
Na4 {[%clk 0:03:08.2]} 14... c5 {[%clk 0:02:53.8]} 15. Nxc5 {[%clk 0:03:07]}
15... Bxc5 {[%clk 0:02:39]} 16. Qxc5 {[%clk 0:03:07.7]} 16... Nxe4 {[%clk
0:02:40.9]} 17. Qxe5 {[%clk 0:03:07.3]} 17... Re8 {[%clk 0:02:42.1]} 18. Qb5
{[%clk 0:02:52.6]} 18... Qxd4 {[%clk 0:01:31.8]} 19. Qxb7 {[%clk 0:02:53.1]}
19... Rad8 {[%clk 0:01:31.5]} 20. Be3 {[%clk 0:02:21.9]} 20... Qxb2 {[%clk
0:01:29.1]} 21. Bf3 {[%clk 0:02:22.6]} 21... Nd2 {[%clk 0:01:27.5]} 22. Bxd2
{[%clk 0:02:10.8]} 22... Rxd2 {[%clk 0:01:29.4]} 23. Qxa7 {[%clk 0:02:08.1]}
23... h6 {[%clk 0:01:30]} 24. Rab1 {[%clk 0:02:04.8]} 24... Qc3 {[%clk
0:01:27.1]} 25. Qa4 {[%clk 0:01:58.3]} 25... Rb8 {[%clk 0:01:22.3]} 26. Qb3
{[%clk 0:01:54.5]} 26... Qd4 {[%clk 0:01:20.3]} 27. Rbd1 {[%clk 0:01:51.4]}
27... Re8 {[%clk 0:01:14.3]} 28. Rxd2 {[%clk 0:01:51.7]} 28... Qxd2 {[%clk
0:01:14.3]} 29. Bd5 {[%clk 0:01:48.6]} 29... Re7 {[%clk 0:01:11.6]} 30. g3
{[%clk 0:01:48]} 30... g6 {[%clk 0:01:10.7]} 31. Kg2 {[%clk 0:01:46.3]} 31...
Kg7 {[%clk 0:01:10]} 32. Rd1 {[%clk 0:01:45.6]} 32... Qe2 {[%clk 0:01:06]} 33.
Bf3 {[%clk 0:01:44.4]} 33... Qb5 {[%clk 0:01:04.7]} 34. Qb2+ {[%clk 0:01:44.8]}
34... Kh7 {[%clk 0:01:03]} 35. Rd8 {[%clk 0:01:45.2]} 35... Re5 {[%clk
0:00:58.6]} 36. a3 {[%clk 0:01:33.5]} 36... b3 {[%clk 0:00:53.6]} 37. a4 {[%clk
0:01:32.5]} 37... Qc5 {[%clk 0:00:50.8]} 38. Qxb3 {[%clk 0:01:28]} 38... Re7
{[%clk 0:00:50.9]} 39. Qb2 {[%clk 0:01:22.2]} 39... Re5 {[%clk 0:00:51.1]} 40.
Rf8 {[%clk 0:01:06.9]} 40... Kg7 {[%clk 0:00:47.8]} 41. Re8 {[%clk 0:01:06.9]}
1-0

[Event "*** Titled Tuesday Blitz"]
[Site "Chess.com"]
[Date "2019.03.05"]
[Round "3"]
[White "tango_argentino"]
[Black "UCantHandleDenker"]
[Result "0-1"]
[WhiteElo "2497"]
[BlackElo "2539"]
[TimeControl "180+2"]
[EndTime "13:40:46 PST"]
[Termination "UCantHandleDenker won by resignation"]

1. e4 {[%clk 0:03:01.9]} 1... c5 {[%clk 0:02:58.3]} 2. a3 {[%clk 0:03:01.5]}
2... g6 {[%clk 0:02:52.9]} 3. Bc4 {[%clk 0:02:59.4]} 3... Bg7 {[%clk 0:02:51.4]}
4. d3 {[%clk 0:02:58.9]} 4... d6 {[%clk 0:02:50.5]} 5. Nc3 {[%clk 0:02:49.2]}
5... Nc6 {[%clk 0:02:50.7]} 6. h3 {[%clk 0:02:48.2]} 6... Nf6 {[%clk 0:02:50.4]}
7. Ba2 {[%clk 0:02:48.1]} 7... O-O {[%clk 0:02:50.4]} 8. Nf3 {[%clk 0:02:48.7]}
8... Rb8 {[%clk 0:02:51.4]} 9. O-O {[%clk 0:02:47.8]} 9... b5 {[%clk 0:02:48]}
10. Be3 {[%clk 0:02:47.9]} 10... a5 {[%clk 0:02:45.2]} 11. a4 {[%clk 0:02:43.2]}
11... b4 {[%clk 0:02:40.2]} 12. Nb5 {[%clk 0:02:43.8]} 12... Ba6 {[%clk
0:02:38.5]} 13. Bc4 {[%clk 0:02:44.6]} 13... Bb7 {[%clk 0:02:19]} 14. Qd2 {[%clk
0:02:40.8]} 14... e6 {[%clk 0:02:14.6]} 15. Bh6 {[%clk 0:02:29.5]} 15... d5
{[%clk 0:02:12.6]} 16. Bxg7 {[%clk 0:02:30.1]} 16... Kxg7 {[%clk 0:02:13.1]} 17.
exd5 {[%clk 0:02:30.8]} 17... exd5 {[%clk 0:02:13.5]} 18. Bb3 {[%clk 0:02:30.4]}
18... Ba6 {[%clk 0:01:39.6]} 19. Qg5 {[%clk 0:01:50.6]} 19... h6 {[%clk
0:01:37]} 20. Qg3 {[%clk 0:01:38.9]} 20... Bxb5 {[%clk 0:01:34.6]} 21. axb5
{[%clk 0:01:40.8]} 21... Rxb5 {[%clk 0:01:35.6]} 22. Ba4 {[%clk 0:01:38.5]}
22... Rb6 {[%clk 0:01:35.8]} 23. Bxc6 {[%clk 0:01:40.1]} 23... Rxc6 {[%clk
0:01:37.3]} 24. Rfe1 {[%clk 0:01:36.7]} 24... Ra6 {[%clk 0:01:22.6]} 25. Nh4
{[%clk 0:01:11.2]} 25... Nh5 {[%clk 0:01:17]} 26. Nf5+ {[%clk 0:01:11.8]} 26...
Kh7 {[%clk 0:01:16.9]} 27. Qf3 {[%clk 0:01:13.4]} 27... Rf6 {[%clk 0:01:11.8]}
28. Re5 {[%clk 0:01:04.6]} 28... Ng7 {[%clk 0:00:55]} 29. Rxd5 {[%clk
0:01:04.3]} 29... Qa8 {[%clk 0:00:55]} 30. Rxc5 {[%clk 0:00:45.6]} 30... Qxf3
{[%clk 0:00:52.5]} 31. gxf3 {[%clk 0:00:47.5]} 31... Nxf5 {[%clk 0:00:53.1]} 32.
Raxa5 {[%clk 0:00:45.8]} 32... Nd4 {[%clk 0:00:53.4]} 33. Rc4 {[%clk 0:00:44.5]}
33... Nxf3+ {[%clk 0:00:50.9]} 34. Kg2 {[%clk 0:00:46]} 34... b3 {[%clk
0:00:52.1]} 35. cxb3 {[%clk 0:00:45.3]} 35... Ne1+ {[%clk 0:00:52.7]} 36. Kg3
{[%clk 0:00:44.6]} 36... Nxd3 {[%clk 0:00:54.6]} 37. f3 {[%clk 0:00:45]} 37...
Rb8 {[%clk 0:00:48.1]} 38. b4 {[%clk 0:00:44.2]} 0-1

[Event "*** Titled Tuesday Blitz"]
[Site "Chess.com"]
[Date "2019.03.05"]
[Round "3"]
[White "b_6"]
[Black "NIGWAPO"]
[Result "1-0"]
[WhiteElo "2416"]
[BlackElo "2563"]
[TimeControl "180+2"]
[EndTime "13:40:49 PST"]
[Termination "b_6 won on time"]

1. d4 {[%clk 0:03:01.9]} 1... Nf6 {[%clk 0:03:01.9]} 2. Bf4 {[%clk 0:03:02.3]}
2... g6 {[%clk 0:03:02.3]} 3. Nc3 {[%clk 0:03:03]} 3... Bg7 {[%clk 0:03:04.2]}
4. e4 {[%clk 0:03:03.9]} 4... d6 {[%clk 0:03:04.7]} 5. Qd2 {[%clk 0:03:05.2]}
5... c6 {[%clk 0:03:04.7]} 6. Bh6 {[%clk 0:03:04.5]} 6... Bxh6 {[%clk
0:03:05.3]} 7. Qxh6 {[%clk 0:03:06.4]} 7... Qb6 {[%clk 0:03:06]} 8. O-O-O {[%clk
0:03:07.5]} 8... Qa5 {[%clk 0:03:03]} 9. Nf3 {[%clk 0:02:33.3]} 9... Bg4 {[%clk
0:02:56.3]} 10. Be2 {[%clk 0:02:25.3]} 10... Nbd7 {[%clk 0:02:55.4]} 11. h3
{[%clk 0:02:19.7]} 11... Bxf3 {[%clk 0:02:55.4]} 12. Bxf3 {[%clk 0:02:21.6]}
12... O-O-O {[%clk 0:02:54.5]} 13. Kb1 {[%clk 0:02:20.8]} 13... Nb6 {[%clk
0:02:46.4]} 14. Be2 {[%clk 0:02:09.8]} 14... Na4 {[%clk 0:02:43.1]} 15. Nxa4
{[%clk 0:02:09.1]} 15... Qxa4 {[%clk 0:02:44.7]} 16. Qe3 {[%clk 0:02:08.8]}
16... Qb4 {[%clk 0:02:38]} 17. Rd3 {[%clk 0:02:06.9]} 17... e5 {[%clk 0:02:37]}
18. Rhd1 {[%clk 0:02:05.3]} 18... Rhe8 {[%clk 0:02:35.4]} 19. Rb3 {[%clk
0:02:02.2]} 19... exd4 {[%clk 0:02:28.6]} 20. Qf4 {[%clk 0:01:48.7]} 20... Rxe4
{[%clk 0:02:03.4]} 21. Qxf6 {[%clk 0:01:40.7]} 21... Qa5 {[%clk 0:02:04.4]} 22.
Bg4+ {[%clk 0:01:32.2]} 22... Kb8 {[%clk 0:01:57.5]} 23. Qxf7 {[%clk 0:01:31.3]}
23... b5 {[%clk 0:01:58.5]} 24. Ra3 {[%clk 0:01:19.8]} 24... Qb6 {[%clk
0:01:54.1]} 25. Bf3 {[%clk 0:01:17.1]} 25... Re5 {[%clk 0:01:51.8]} 26. Rad3
{[%clk 0:01:13.7]} 26... c5 {[%clk 0:01:39.1]} 27. Qxh7 {[%clk 0:01:09]} 27...
Rf8 {[%clk 0:01:39.4]} 28. Qxg6 {[%clk 0:00:58.6]} 28... c4 {[%clk 0:01:40.1]}
29. Rxd4 {[%clk 0:00:53.5]} 29... Rxf3 {[%clk 0:01:32.5]} 30. Rxd6 {[%clk
0:00:40.8]} 1-0

[Event "*** Titled Tuesday Blitz"]
[Site "Chess.com"]
[Date "2019.03.05"]
[Round "3"]
[White "SantoBlue"]
[Black "Sanan_Sjugirov"]
[Result "1-0"]
[WhiteElo "2722"]
[BlackElo "2892"]
[TimeControl "180+2"]
[EndTime "13:40:50 PST"]
[Termination "SantoBlue won by resignation"]

1. e4 {[%clk 0:03:01.9]} 1... c5 {[%clk 0:03:00.8]} 2. Nf3 {[%clk 0:03:01.3]}
2... d6 {[%clk 0:03:00.8]} 3. Bb5+ {[%clk 0:03:02.7]} 3... Nd7 {[%clk
0:02:58.2]} 4. O-O {[%clk 0:03:03]} 4... a6 {[%clk 0:02:56.6]} 5. Bxd7+ {[%clk
0:03:04.2]} 5... Bxd7 {[%clk 0:02:57.3]} 6. d4 {[%clk 0:03:05.5]} 6... cxd4
{[%clk 0:02:56.1]} 7. Qxd4 {[%clk 0:03:07.4]} 7... Rc8 {[%clk 0:02:48.8]} 8. c4
{[%clk 0:03:03.9]} 8... e5 {[%clk 0:02:47.6]} 9. Qd3 {[%clk 0:03:03.2]} 9... b5
{[%clk 0:02:48.1]} 10. Na3 {[%clk 0:03:03.8]} 10... Qb6 {[%clk 0:02:44.6]} 11.
Be3 {[%clk 0:03:01.5]} 11... Qb7 {[%clk 0:02:45.6]} 12. cxb5 {[%clk 0:03:01.7]}
12... axb5 {[%clk 0:02:46.3]} 13. Rac1 {[%clk 0:03:03.1]} 13... Rxc1 {[%clk
0:02:43.2]} 14. Rxc1 {[%clk 0:03:04]} 14... Nf6 {[%clk 0:02:43]} 15. Nd2 {[%clk
0:03:05.5]} 15... h6 {[%clk 0:02:16.9]} 16. h3 {[%clk 0:02:16.2]} 16... Be7
{[%clk 0:02:16.4]} 17. Nc2 {[%clk 0:02:17.2]} 17... d5 {[%clk 0:01:55.4]} 18.
exd5 {[%clk 0:02:16.5]} 18... Qxd5 {[%clk 0:01:57.3]} 19. Qxd5 {[%clk
0:02:01.6]} 19... Nxd5 {[%clk 0:01:59.2]} 20. Nb3 {[%clk 0:02:00.5]} 20... Bf5
{[%clk 0:01:23.7]} 21. Bc5 {[%clk 0:01:52.8]} 21... Bg5 {[%clk 0:01:23.5]} 22.
Ne3 {[%clk 0:01:53.6]} 22... Nxe3 {[%clk 0:01:12.7]} 23. Bxe3 {[%clk 0:01:54]}
23... Bxe3 {[%clk 0:00:33.4]} 24. fxe3 {[%clk 0:01:54]} 24... Kd7 {[%clk
0:00:24.2]} 25. Rc5 {[%clk 0:01:54.5]} 25... Ra8 {[%clk 0:00:23.5]} 26. Rxe5
{[%clk 0:01:47.5]} 26... Be6 {[%clk 0:00:23.8]} 27. Rxb5 {[%clk 0:01:47.6]}
27... Rxa2 {[%clk 0:00:23.4]} 28. Nd4 {[%clk 0:01:49.1]} 28... Bc4 {[%clk
0:00:22.1]} 29. Rb7+ {[%clk 0:01:48]} 29... Kd6 {[%clk 0:00:22.2]} 30. Nf5+
{[%clk 0:01:40.5]} 30... Kc6 {[%clk 0:00:23.4]} 31. Rb8 {[%clk 0:01:34.6]} 31...
Kc7 {[%clk 0:00:12.8]} 32. Rb4 {[%clk 0:01:33.1]} 32... Bd3 {[%clk 0:00:09.6]}
33. Nxg7 {[%clk 0:01:31.4]} 33... Kc6 {[%clk 0:00:10.9]} 34. Nh5 {[%clk
0:01:28.4]} 34... Kc5 {[%clk 0:00:11.6]} 35. Rb8 {[%clk 0:01:29.6]} 35... Be4
{[%clk 0:00:11.6]} 36. Ng3 {[%clk 0:01:27.5]} 36... Bd3 {[%clk 0:00:11.4]} 37.
Rc8+ {[%clk 0:01:21.4]} 37... Kd5 {[%clk 0:00:07.3]} 38. Rd8+ {[%clk 0:01:19.8]}
38... Kc4 {[%clk 0:00:08.8]} 39. Rd4+ {[%clk 0:01:21.3]} 1-0

[Event "*** Titled Tuesday Blitz"]
[Site "Chess.com"]
[Date "2019.03.05"]
[Round "3"]
[White "Dare-Dare"]
[Black "salomez"]
[Result "0-1"]
[WhiteElo "2110"]
[BlackElo "2095"]
[TimeControl "180+2"]
[EndTime "13:40:54 PST"]
[Termination "salomez won by resignation"]

1. Nf3 {[%clk 0:03:01.9]} 1... Nf6 {[%clk 0:02:55.1]} 2. c4 {[%clk 0:03:03.8]}
2... g6 {[%clk 0:02:53.3]} 3. Nc3 {[%clk 0:03:04.3]} 3... Bg7 {[%clk 0:02:53.2]}
4. e4 {[%clk 0:03:05.1]} 4... d6 {[%clk 0:02:53.8]} 5. d4 {[%clk 0:03:05.7]}
5... Nbd7 {[%clk 0:02:51.6]} 6. h3 {[%clk 0:03:06.1]} 6... e5 {[%clk 0:02:50.9]}
7. d5 {[%clk 0:03:06.8]} 7... O-O {[%clk 0:02:51.1]} 8. Be3 {[%clk 0:03:06.8]}
8... a5 {[%clk 0:02:50.3]} 9. g4 {[%clk 0:03:07]} 9... b6 {[%clk 0:02:27.9]} 10.
Be2 {[%clk 0:03:06.1]} 10... Bb7 {[%clk 0:02:26.3]} 11. Qc2 {[%clk 0:02:56.2]}
11... Nc5 {[%clk 0:02:23.7]} 12. O-O-O {[%clk 0:02:53.3]} 12... a4 {[%clk
0:02:22.6]} 13. Nd2 {[%clk 0:02:53.5]} 13... Nfd7 {[%clk 0:02:18.3]} 14. h4
{[%clk 0:02:51.9]} 14... c6 {[%clk 0:02:04.1]} 15. h5 {[%clk 0:02:51]} 15...
cxd5 {[%clk 0:02:02.3]} 16. cxd5 {[%clk 0:02:50]} 16... Rc8 {[%clk 0:02:00.2]}
17. Kb1 {[%clk 0:02:48.8]} 17... a3 {[%clk 0:01:54.8]} 18. hxg6 {[%clk
0:02:43.1]} 18... fxg6 {[%clk 0:01:55.3]} 19. Rh3 {[%clk 0:02:38]} 19... axb2
{[%clk 0:01:55.6]} 20. Qxb2 {[%clk 0:02:38.1]} 20... Nf6 {[%clk 0:01:41.6]} 21.
g5 {[%clk 0:02:32]} 21... Nfd7 {[%clk 0:01:37.7]} 22. Rdh1 {[%clk 0:02:31.7]}
22... Rf4 {[%clk 0:01:02.5]} 23. Rxh7 {[%clk 0:02:26]} 23... Qxg5 {[%clk
0:01:01]} 24. Nb5 {[%clk 0:02:04.1]} 24... Qf6 {[%clk 0:00:47.6]} 25. Bxf4
{[%clk 0:01:58.4]} 25... Qxf4 {[%clk 0:00:48.1]} 26. Nxd6 {[%clk 0:01:42.7]}
26... Na4 {[%clk 0:00:48.4]} 27. Qb5 {[%clk 0:01:24.6]} 27... Nc3+ {[%clk
0:00:48]} 28. Ka1 {[%clk 0:01:22.1]} 28... Nxb5 {[%clk 0:00:46]} 29. Bxb5 {[%clk
0:01:20.2]} 29... Qxd2 {[%clk 0:00:42.2]} 30. Bxd7 {[%clk 0:01:05.6]} 30... Qc3+
{[%clk 0:00:36.9]} 31. Kb1 {[%clk 0:01:05]} 31... Qb4+ {[%clk 0:00:28.5]} 32.
Ka1 {[%clk 0:01:02.4]} 32... Qxd6 {[%clk 0:00:27.8]} 33. Bxc8 {[%clk 0:01:02.8]}
33... Bxc8 {[%clk 0:00:28.5]} 34. R7h2 {[%clk 0:01:00.1]} 34... Qb4 {[%clk
0:00:27.4]} 35. Rc1 {[%clk 0:00:54.7]} 35... Qd4+ {[%clk 0:00:27.5]} 36. Kb1
{[%clk 0:00:51.7]} 36... Qxe4+ {[%clk 0:00:28.4]} 37. Ka1 {[%clk 0:00:52.7]}
37... Qd4+ {[%clk 0:00:28.9]} 38. Kb1 {[%clk 0:00:52.6]} 0-1

[Event "*** Titled Tuesday Blitz"]
[Site "Chess.com"]
[Date "2019.03.05"]
[Round "3"]
[White "vugarrasulov"]
[Black "Tjktiger"]
[Result "1-0"]
[WhiteElo "2741"]
[BlackElo "2792"]
[TimeControl "180+2"]
[EndTime "13:41:01 PST"]
[Termination "vugarrasulov won on time"]

1. e4 {[%clk 0:03:01.9]} 1... c5 {[%clk 0:03:00.5]} 2. Nf3 {[%clk 0:03:02.4]}
2... g6 {[%clk 0:03:01.5]} 3. d4 {[%clk 0:03:03]} 3... cxd4 {[%clk 0:03:03.4]}
4. Qxd4 {[%clk 0:03:04.6]} 4... Nf6 {[%clk 0:03:04.3]} 5. e5 {[%clk 0:03:06.1]}
5... Nc6 {[%clk 0:03:05.4]} 6. Qa4 {[%clk 0:03:07.2]} 6... Nd5 {[%clk
0:03:06.4]} 7. Qb3 {[%clk 0:03:08.3]} 7... e6 {[%clk 0:02:59.7]} 8. c4 {[%clk
0:03:07.8]} 8... Nde7 {[%clk 0:03:00.4]} 9. Nc3 {[%clk 0:03:03.2]} 9... Bg7
{[%clk 0:03:01.2]} 10. Bf4 {[%clk 0:03:02.6]} 10... O-O {[%clk 0:03:00.5]} 11.
Be2 {[%clk 0:02:57.6]} 11... Qa5 {[%clk 0:02:59.3]} 12. Qb5 {[%clk 0:02:58.6]}
12... Qc7 {[%clk 0:03:00.3]} 13. O-O {[%clk 0:02:54]} 13... a6 {[%clk
0:02:48.7]} 14. Qc5 {[%clk 0:02:53.4]} 14... Nf5 {[%clk 0:02:36.9]} 15. Na4
{[%clk 0:02:41.7]} 15... b5 {[%clk 0:01:35.3]} 16. cxb5 {[%clk 0:02:18.7]} 16...
axb5 {[%clk 0:01:36.3]} 17. Bxb5 {[%clk 0:02:18.7]} 17... Ra5 {[%clk 0:01:25.8]}
18. b4 {[%clk 0:02:09.3]} 18... Ra8 {[%clk 0:01:05.6]} 19. Rfd1 {[%clk
0:01:49.8]} 19... Re8 {[%clk 0:00:54.1]} 20. a3 {[%clk 0:01:46.9]} 20... Bb7
{[%clk 0:00:26.3]} 21. Qb6 {[%clk 0:01:43.6]} 21... Qc8 {[%clk 0:00:16.3]} 22.
Nc5 {[%clk 0:01:43.6]} 22... Rb8 {[%clk 0:00:16.9]} 23. Nxd7 {[%clk 0:01:36]}
23... Ra8 {[%clk 0:00:04.1]} 24. Rac1 {[%clk 0:01:34]} 24... Nfe7 {[%clk
0:00:03.4]} 25. Nc5 {[%clk 0:01:15.9]} 25... Rb8 {[%clk 0:00:03.2]} 26. Nxb7
{[%clk 0:01:17]} 26... Rxb7 {[%clk 0:00:05.1]} 27. Qc5 {[%clk 0:01:18.1]} 27...
Rc7 {[%clk 0:00:03.3]} 28. Bg5 {[%clk 0:01:11.8]} 28... Bf8 {[%clk 0:00:03.6]}
29. Qc4 {[%clk 0:01:01.2]} 29... Nd5 {[%clk 0:00:02.1]} 30. Bxc6 {[%clk
0:01:00.2]} 1-0

[Event "*** Titled Tuesday Blitz"]
[Site "Chess.com"]
[Date "2019.03.05"]
[Round "3"]
[White "Stephenzinho"]
[Black "gunslinger222"]
[Result "1-0"]
[WhiteElo "2513"]
[BlackElo "2196"]
[TimeControl "180+2"]
[EndTime "13:41:02 PST"]
[Termination "Stephenzinho won by resignation"]

1. e4 {[%clk 0:03:01.9]} 1... e6 {[%clk 0:03:01]} 2. d4 {[%clk 0:03:02.6]} 2...
d5 {[%clk 0:03:02.2]} 3. exd5 {[%clk 0:03:04.5]} 3... exd5 {[%clk 0:03:04.1]} 4.
Nf3 {[%clk 0:03:06.4]} 4... Bg4 {[%clk 0:03:04.4]} 5. Be2 {[%clk 0:03:01.7]}
5... Bd6 {[%clk 0:03:04.6]} 6. O-O {[%clk 0:03:03]} 6... Ne7 {[%clk 0:03:05]} 7.
h3 {[%clk 0:03:03.4]} 7... Bxf3 {[%clk 0:02:54.4]} 8. Bxf3 {[%clk 0:03:05.3]}
8... Nd7 {[%clk 0:02:55.6]} 9. Re1 {[%clk 0:03:05.9]} 9... O-O {[%clk
0:02:52.2]} 10. Nd2 {[%clk 0:03:02.5]} 10... c6 {[%clk 0:02:40.5]} 11. a4 {[%clk
0:03:00.7]} 11... Nf5 {[%clk 0:02:38]} 12. c3 {[%clk 0:03:00.6]} 12... Nh4
{[%clk 0:02:35.7]} 13. Nf1 {[%clk 0:02:34]} 13... Nxf3+ {[%clk 0:02:23.7]} 14.
Qxf3 {[%clk 0:02:35.9]} 14... Nf6 {[%clk 0:01:37]} 15. Bg5 {[%clk 0:02:35.6]}
15... Be7 {[%clk 0:01:35.5]} 16. Ng3 {[%clk 0:02:18.8]} 16... h6 {[%clk
0:01:32.7]} 17. Nf5 {[%clk 0:02:15]} 17... hxg5 {[%clk 0:01:20.6]} 18. Nxe7+
{[%clk 0:02:13.4]} 18... Kh8 {[%clk 0:01:20.5]} 19. Re5 {[%clk 0:02:12.3]} 19...
Qd6 {[%clk 0:00:43.3]} 20. Rae1 {[%clk 0:01:59.6]} 20... g6 {[%clk 0:00:41.4]}
21. Rxg5 {[%clk 0:01:23.7]} 21... Ne4 {[%clk 0:00:31.5]} 22. Re5 {[%clk
0:01:17.9]} 22... Rae8 {[%clk 0:00:17.9]} 23. Qf4 {[%clk 0:00:18.1]} 23... Kg7
{[%clk 0:00:16]} 24. R5xe4 {[%clk 0:00:09.4]} 24... dxe4 {[%clk 0:00:16.1]} 25.
Qxd6 {[%clk 0:00:10]} 1-0

[Event "*** Titled Tuesday Blitz"]
[Site "Chess.com"]
[Date "2019.03.05"]
[Round "3"]
[White "Chessmatus"]
[Black "saraswathii"]
[Result "1-0"]
[WhiteElo "2295"]
[BlackElo "2239"]
[TimeControl "180+2"]
[EndTime "13:41:07 PST"]
[Termination "Chessmatus won by checkmate"]

1. d4 {[%clk 0:03:01.9]} 1... Nf6 {[%clk 0:02:59.8]} 2. c4 {[%clk 0:03:02.9]}
2... d6 {[%clk 0:03:00.1]} 3. Nc3 {[%clk 0:03:03.1]} 3... g6 {[%clk 0:03:01.3]}
4. e4 {[%clk 0:03:03.7]} 4... Bg7 {[%clk 0:03:02.3]} 5. Be3 {[%clk 0:03:04.7]}
5... O-O {[%clk 0:03:03.1]} 6. Be2 {[%clk 0:03:05.9]} 6... Nbd7 {[%clk
0:03:02.6]} 7. g4 {[%clk 0:03:06.3]} 7... e5 {[%clk 0:02:58.1]} 8. d5 {[%clk
0:03:07]} 8... Nb6 {[%clk 0:02:57.2]} 9. f3 {[%clk 0:02:53.9]} 9... Ne8 {[%clk
0:02:53.3]} 10. h4 {[%clk 0:02:54.7]} 10... f5 {[%clk 0:02:53.6]} 11. gxf5
{[%clk 0:02:29.1]} 11... gxf5 {[%clk 0:02:55.5]} 12. Bg5 {[%clk 0:02:24]} 12...
Nf6 {[%clk 0:02:54.5]} 13. exf5 {[%clk 0:01:33.5]} 13... Bxf5 {[%clk 0:02:53.6]}
14. Bd3 {[%clk 0:01:34.8]} 14... Qd7 {[%clk 0:02:51.4]} 15. Qc2 {[%clk
0:01:34.4]} 15... Bxd3 {[%clk 0:02:34.7]} 16. Qxd3 {[%clk 0:01:35.4]} 16... Rae8
{[%clk 0:02:36.2]} 17. O-O-O {[%clk 0:01:35.2]} 17... Na4 {[%clk 0:02:29.5]} 18.
Nge2 {[%clk 0:01:29]} 18... Nc5 {[%clk 0:02:29.4]} 19. Qc2 {[%clk 0:01:30.1]}
19... Nh5 {[%clk 0:02:29.4]} 20. Rhg1 {[%clk 0:01:28.6]} 20... Rxf3 {[%clk
0:02:27.2]} 21. b4 {[%clk 0:01:09]} 21... Na6 {[%clk 0:02:20]} 22. a3 {[%clk
0:01:10]} 22... Kh8 {[%clk 0:02:15.2]} 23. Rdf1 {[%clk 0:01:04.6]} 23... Ref8
{[%clk 0:02:13]} 24. Rxf3 {[%clk 0:00:53.1]} 24... Rxf3 {[%clk 0:02:14.9]} 25.
Qe4 {[%clk 0:00:50.1]} 25... Qf5 {[%clk 0:01:58]} 26. Qxf5 {[%clk 0:00:46.3]}
26... Rxf5 {[%clk 0:01:59.9]} 27. Ne4 {[%clk 0:00:47.4]} 27... Rf3 {[%clk
0:01:58.1]} 28. N2c3 {[%clk 0:00:47.2]} 28... c6 {[%clk 0:01:55.4]} 29. Kc2
{[%clk 0:00:39.8]} 29... cxd5 {[%clk 0:01:52.6]} 30. cxd5 {[%clk 0:00:38.4]}
30... Bf8 {[%clk 0:01:45.4]} 31. Nb5 {[%clk 0:00:36]} 31... h6 {[%clk 0:01:34]}
32. Bd8 {[%clk 0:00:25.5]} 32... Nf4 {[%clk 0:01:21.7]} 33. Nf6 {[%clk
0:00:19.3]} 33... Bg7 {[%clk 0:01:18.4]} 34. Nxd6 {[%clk 0:00:20.4]} 34... Rf2+
{[%clk 0:01:08.9]} 35. Kb1 {[%clk 0:00:19.9]} 35... Bxf6 {[%clk 0:00:46.8]} 36.
Bxf6+ {[%clk 0:00:20.4]} 36... Kh7 {[%clk 0:00:48.3]} 37. Rg7+ {[%clk 0:00:22]}
37... Kh8 {[%clk 0:00:49.3]} 38. Nf7# {[%clk 0:00:23.9]} 1-0